{"text_format":"3","workbook":"xlsx","n_sheets":2,"sheets":["附件1","附件2"],"not_rendered":{"defined_names":2},"read":"whole","date_system":"1900"}

{"sheet":"附件1","index":0,"n_rows":21,"n_cols":21,"rows_kept":21,"merged":[[1,0,1,20],[2,0,2,20],[3,0,4,0],[3,1,4,1],[3,2,4,2],[3,3,3,6],[3,7,3,10],[3,11,3,14],[3,15,3,20],[20,0,20,20]]}
["附件1"]
["清流县2020年教育卫生所属事业单位公开招聘紧缺急需专业工作人员计划表"]
["填报单位（盖章）： 清流县人力资源和社会保障局      编制部门（盖章）：清流县委编办        填报日期：2019年12月29日"]
["主管部门","招聘单位","经费方式","核定编制数",{"$nulls":3},"现在实有人数",{"$nulls":3},"申报招聘人数",{"$nulls":3},"拟招聘人员学历条件（人数）      "]
[{"$nulls":3},"管理人员","专业技术人员","工勤 人员","合计","管理人员","专业技术人员","工勤 人员","合计","管理人员","专业技术人员","工勤人员","合计","博士 ","硕士","本科","大专","中专（含中职、高中、技校)","合计"]
["清流县教育局","清流第一中学","财政  核拨",null,198,null,198,null,196,null,196,null,2,null,2,null,null,2,null,null,2]
["清流县教育局","清流县高级职业中学","财政  核拨",null,85,null,85,null,76,null,76,null,4,null,4,null,null,4,null,null,4]
["清流县教育局","清流县长校中学","财政  核拨",null,25,null,25,null,19,null,19,null,5,null,5,null,null,5,null,null,5]
["清流县教育局","清流县赖坊中心小学","财政  核拨",null,64,null,64,null,43,null,43,null,3,null,3,null,null,3,null,null,3]
["清流县教育局","清流县长校中心小学","财政  核拨",null,71,null,71,null,56,null,56,null,2,null,2,null,null,2,null,null,2]
["清流县教育局","清流县嵩溪中心小学","财政  核拨",null,98,null,98,null,89,null,89,null,1,null,1,null,null,1,null,null,1]
["清流县教育局","清流县嵩口中心小学","财政  核拨",null,102,null,102,null,87,null,87,null,2,null,2,null,null,2,null,null,2]
["清流县卫生健康局","清流县总医院","财政 核补",null,{"$f":"G13","v":292},null,292,null,{"$f":"K13","v":256},null,256,null,14,null,{"$f":"L13+M13+N13","v":14},null,null,14,null,null,{"$f":"P13+Q13+R13+S13+T13","v":14}]
["清流县卫生健康局","清流县中医院","财政核补",null,{"$f":"G14","v":48},null,48,null,{"$f":"K14","v":43},null,43,null,2,null,2,null,null,2,null,null,2]
["清流县卫生健康局","清流县灵地卫生院","财政核拨",null,27,null,27,null,15,null,15,null,1,null,1,null,null,1,null,null,1]
["清流县卫生健康局","清流县田源卫生院","财政核拨",null,14,null,14,null,13,null,13,null,1,null,1,null,null,1,null,null,1]
["清流县卫生健康局","清流县林畲卫生院","财政核拨",null,15,null,15,null,10,null,10,null,1,null,1,null,null,1,null,null,1]
["清流县卫生健康局","清流县嵩口中心卫生院","财政核拨",null,29,null,29,null,22,null,22,null,1,null,1,null,null,1,null,null,1]
["清流县卫生健康局","清流县余朋卫生院","财政核拨",null,15,null,15,null,11,null,11,null,1,null,1,null,null,1,null,null,1]
["合计",{"$nulls":3},{"$f":"SUM(E6:E19)","v":1083},null,{"$f":"SUM(G6:G19)","v":1083},null,936,null,936,null,40,null,40,null,null,40,null,null,40]
["单位负责人签名：                                     填表人：                             联系电话：8703820"]

{"sheet":"附件2","index":1,"n_rows":15,"n_cols":17,"rows_kept":15,"merged":[[1,0,1,16],[2,0,2,16],[3,0,5,0],[3,1,5,1],[3,2,5,2],[3,3,5,3],[3,4,5,4],[3,5,5,5],[3,6,3,15],[3,16,5,16],[4,6,5,6],[4,7,5,7],[4,8,4,9],[4,10,5,10],[4,11,5,11],[4,12,5,12],[4,13,5,13],[4,14,5,14],[4,15,5,15],[14,11,14,14]]}
["附件2"]
["清流县2020年教育紧缺急需专业公开招聘工作人员岗位信息表"]
[" 填报单位（盖章）：清流县人力资源和社会保障局                                                          填报日期：2019年12月31日"]
["主管部门","招聘单位","经费\n方式","招聘岗位","招聘人数","笔试面试（含技能测试）成绩折算比例","岗位资格条件",{"$nulls":9},"备注"]
[{"$nulls":6},"最高年龄","专业","学历及类别",null,"学位","政治\n面貌","性别","招聘\n对象","其他条件","招聘单位审核人姓名、联系电话"]
[{"$nulls":8},"全日制普通教育学历","不限"]
["清流县教育局","清流县高级职业中学","财政核拨","专技人员（语文教师）",1,"紧缺专业免笔试",30,"中国语言文学类、教育学类","本科及以上",null,"学士及以上","不限","不限","应往届毕业生","具有高级中学语文教师资格证","0598-5323692  李永茂  ","最低服务年限5年"]
["清流县教育局","清流县高级职业中学","财政核拨","专技人员（数学教师）",1,"紧缺专业免笔试",30,"数学类、教育学类","本科及以上",null,"学士及以上","不限","不限","应往届毕业生","具有高级中学数学教师资格证","0598-5323692  李永茂  ","最低服务年限5年"]
["清流县教育局","清流县高级职业中学","财政核拨","专技人员（物理教师）",1,"紧缺专业免笔试",30,"物理学类、教育学类","本科及以上",null,"学士及以上","不限","不限","应往届毕业生","具有高级中学物理教师资格证","0598-5323692  李永茂  ","最低服务年限5年"]
["清流县教育局","清流县长校中学","财政核拨","专技人员（数学教师）",1,"紧缺专业免笔试",30,"数学类、教育学类","本科及以上",null,"学士及以上","不限","不限","应往届毕业生","具有初级中学及以上数学教师资格证","0598-5323692  李永茂  ","最低服务年限5年"]
["清流县教育局","清流县赖坊中心小学","财政核拨","专技人员（语文教师）",2,"紧缺专业免笔试",30,"中国语言文学类、教育学类","本科及以上",null,"学士及以上","不限","不限","应往届毕业生","具有小学及以上语文教师资格证","0598-5323692  李永茂  ","最低服务年限5年"]
["清流县教育局","清流县长校中心小学","财政核拨","专技人员（语文教师）",2,"紧缺专业免笔试",30,"中国语言文学类、教育学类","本科及以上",null,"学士及以上","不限","不限","应往届毕业生","具有小学及以上语文教师资格证","0598-5323692  李永茂  ","最低服务年限5年"]
["清流县教育局","清流县嵩口中心小学","财政核拨","专技人员（语文教师）",1,"紧缺专业免笔试",30,"中国语言文学类、教育学类","本科及以上",null,"学士及以上","不限","不限","应往届毕业生","具有小学及以上语文教师资格证","0598-5323692  李永茂  ","最低服务年限5年"]
["合  计",{"$nulls":3},{"$f":"SUM(E7:E13)","v":9}]
[null,"单位负责人：邹  雄",{"$nulls":5},"填表人：李永茂",{"$nulls":3},"联系电话：0598-5323692"]